{"text_format":"3","workbook":"xlsx","n_sheets":2,"sheets":["DANE ROZWOJU DZIECKA","WYKRES ROZWOJU DZIECKA"],"not_rendered":{"charts":1,"defined_names":3},"read":"whole","date_system":"1900"}

{"sheet":"DANE ROZWOJU DZIECKA","index":0,"n_rows":23,"n_cols":8,"rows_kept":23,"merged":[[0,1,0,7],[1,2,1,7]]}
[null,"Rozwój dziecka "]
[null,"Imię dziecka:","Imię"]
[null,"Wiek","Funty","Uncje","Waga \n(w funtach)","Waga\n— centyl","Długość \n(w calach)","Długość\n— centyl"]
[null,"Po urodzeniu",7,null,{"$f":"IF(COUNT(Dane[[#This Row],[Funty]:[Uncje]])>0,Dane[[#This Row],[Funty]]+(Dane[[#This Row],[Uncje]]/16),NA())","v":7},40,19.5,70]
[null,"4 dni",6,8,{"$f":"IF(COUNT(Dane[[#This Row],[Funty]:[Uncje]])>0,Dane[[#This Row],[Funty]]+(Dane[[#This Row],[Uncje]]/16),NA())","v":6.5},41,19.5,70]
[null,"7 dni",6,4.8,{"$f":"IF(COUNT(Dane[[#This Row],[Funty]:[Uncje]])>0,Dane[[#This Row],[Funty]]+(Dane[[#This Row],[Uncje]]/16),NA())","v":6.3},42,20,71]
[null,"11 dni",6,9.6,{"$f":"IF(COUNT(Dane[[#This Row],[Funty]:[Uncje]])>0,Dane[[#This Row],[Funty]]+(Dane[[#This Row],[Uncje]]/16),NA())","v":6.6},43,20,71]
[null,"14 dni",7,null,{"$f":"IF(COUNT(Dane[[#This Row],[Funty]:[Uncje]])>0,Dane[[#This Row],[Funty]]+(Dane[[#This Row],[Uncje]]/16),NA())","v":7},44,20,71]
[null,"18 dni",7,12,{"$f":"IF(COUNT(Dane[[#This Row],[Funty]:[Uncje]])>0,Dane[[#This Row],[Funty]]+(Dane[[#This Row],[Uncje]]/16),NA())","v":7.75},45,21,72]
[null,"21 dni",8,8,{"$f":"IF(COUNT(Dane[[#This Row],[Funty]:[Uncje]])>0,Dane[[#This Row],[Funty]]+(Dane[[#This Row],[Uncje]]/16),NA())","v":8.5},46,21,72]
[null,"25 dni",null,null,{"$f":"IF(COUNT(Dane[[#This Row],[Funty]:[Uncje]])>0,Dane[[#This Row],[Funty]]+(Dane[[#This Row],[Uncje]]/16),NA())","v":{"$error":"#N/A"}}]
[null,"28 dni",null,null,{"$f":"IF(COUNT(Dane[[#This Row],[Funty]:[Uncje]])>0,Dane[[#This Row],[Funty]]+(Dane[[#This Row],[Uncje]]/16),NA())","v":{"$error":"#N/A"}}]
[null,"5 tygodni",null,null,{"$f":"IF(COUNT(Dane[[#This Row],[Funty]:[Uncje]])>0,Dane[[#This Row],[Funty]]+(Dane[[#This Row],[Uncje]]/16),NA())","v":{"$error":"#N/A"}}]
[null,"6 tygodni",null,null,{"$f":"IF(COUNT(Dane[[#This Row],[Funty]:[Uncje]])>0,Dane[[#This Row],[Funty]]+(Dane[[#This Row],[Uncje]]/16),NA())","v":{"$error":"#N/A"}}]
[null,"7 tygodni",null,null,{"$f":"IF(COUNT(Dane[[#This Row],[Funty]:[Uncje]])>0,Dane[[#This Row],[Funty]]+(Dane[[#This Row],[Uncje]]/16),NA())","v":{"$error":"#N/A"}}]
[null,"2 miesięcy",null,null,{"$f":"IF(COUNT(Dane[[#This Row],[Funty]:[Uncje]])>0,Dane[[#This Row],[Funty]]+(Dane[[#This Row],[Uncje]]/16),NA())","v":{"$error":"#N/A"}}]
[null,"3 miesięcy",null,null,{"$f":"IF(COUNT(Dane[[#This Row],[Funty]:[Uncje]])>0,Dane[[#This Row],[Funty]]+(Dane[[#This Row],[Uncje]]/16),NA())","v":{"$error":"#N/A"}}]
[null,"6 miesięcy",null,null,{"$f":"IF(COUNT(Dane[[#This Row],[Funty]:[Uncje]])>0,Dane[[#This Row],[Funty]]+(Dane[[#This Row],[Uncje]]/16),NA())","v":{"$error":"#N/A"}}]
[null,"9 miesięcy",null,null,{"$f":"IF(COUNT(Dane[[#This Row],[Funty]:[Uncje]])>0,Dane[[#This Row],[Funty]]+(Dane[[#This Row],[Uncje]]/16),NA())","v":{"$error":"#N/A"}}]
[null,"12 miesięcy",null,null,{"$f":"IF(COUNT(Dane[[#This Row],[Funty]:[Uncje]])>0,Dane[[#This Row],[Funty]]+(Dane[[#This Row],[Uncje]]/16),NA())","v":{"$error":"#N/A"}}]
[null,"18 miesięcy",null,null,{"$f":"IF(COUNT(Dane[[#This Row],[Funty]:[Uncje]])>0,Dane[[#This Row],[Funty]]+(Dane[[#This Row],[Uncje]]/16),NA())","v":{"$error":"#N/A"}}]
[null,"24 miesięcy",null,null,{"$f":"IF(COUNT(Dane[[#This Row],[Funty]:[Uncje]])>0,Dane[[#This Row],[Funty]]+(Dane[[#This Row],[Uncje]]/16),NA())","v":{"$error":"#N/A"}}]
[null,"36 miesięcy",null,null,{"$f":"IF(COUNT(Dane[[#This Row],[Funty]:[Uncje]])>0,Dane[[#This Row],[Funty]]+(Dane[[#This Row],[Uncje]]/16),NA())","v":{"$error":"#N/A"}}]

{"sheet":"WYKRES ROZWOJU DZIECKA","index":1,"n_rows":1,"n_cols":2,"rows_kept":1,"merged":[[0,1,1,1]]}
[null,"WYKRES ROZWOJU DZIECKA"]